[Event "Late-Titled-Tuesday-Blitz-January-23-2024"]
[Site "Chess.com"]
[Date "2024.01.23"]
[Round "7"]
[White "pr1105"]
[Black "Practical-Play"]
[Result "1-0"]
[WhiteElo "2335"]
[BlackElo "2514"]
[TimeControl "180+1"]
[EndTime "15:15:07 PST"]
[Termination "pr1105 won by resignation"]

1. e4 {[%clk 0:02:59.5]} 1... d5 {[%clk 0:02:59]} 2. exd5 {[%clk 0:02:58.3]}
2... Nf6 {[%clk 0:02:59.1]} 3. d4 {[%clk 0:02:58]} 3... Bg4 {[%clk 0:02:58.5]}
4. f3 {[%clk 0:02:56.8]} 4... Bf5 {[%clk 0:02:58.4]} 5. g4 {[%clk 0:02:55.3]}
5... Bg6 {[%clk 0:02:58.2]} 6. c4 {[%clk 0:02:53.7]} 6... e6 {[%clk 0:02:54.5]}
7. dxe6 {[%clk 0:02:49.3]} 7... Nc6 {[%clk 0:02:54.2]} 8. Ne2 {[%clk 0:02:41.2]}
8... Nb4 {[%clk 0:02:49.3]} 9. Nf4 {[%clk 0:02:17.6]} 9... Nc2+ {[%clk
0:02:40.5]} 10. Kf2 {[%clk 0:02:17.3]} 10... Nxa1 {[%clk 0:02:19.9]} 11. Nxg6
{[%clk 0:02:12.6]} 11... hxg6 {[%clk 0:02:18.2]} 12. Nc3 {[%clk 0:02:03]} 12...
Qd6 {[%clk 0:02:04]} 13. Be3 {[%clk 0:01:41.3]} 13... Rxh2+ {[%clk 0:01:58.3]}
14. Rxh2 {[%clk 0:01:42.2]} 14... Qxh2+ {[%clk 0:01:57.7]} 15. Bg2 {[%clk
0:01:43.1]} 15... O-O-O {[%clk 0:01:26.9]} 16. Qxa1 {[%clk 0:01:30.2]} 16... Bd6
{[%clk 0:01:25]} 17. exf7 {[%clk 0:01:25.5]} 17... Qg3+ {[%clk 0:01:21.3]} 18.
Kf1 {[%clk 0:01:19.9]} 18... Nxg4 {[%clk 0:01:13.2]} 19. Bg1 {[%clk 0:01:20.2]}
19... Nh2+ {[%clk 0:00:54.1]} 20. Bxh2 {[%clk 0:01:19.6]} 20... Qxh2 {[%clk
0:00:55]} 21. Qb1 {[%clk 0:01:09.9]} 21... Qh5 {[%clk 0:00:36]} 22. Qe4 {[%clk
0:01:00.3]} 22... Qf5 {[%clk 0:00:29.4]} 23. Qe8 {[%clk 0:00:46.6]} 23... Qd3+
{[%clk 0:00:23.5]} 24. Ne2 {[%clk 0:00:43.2]} 24... Qf5 {[%clk 0:00:18.7]} 25.
c5 {[%clk 0:00:39.7]} 25... Bf8 {[%clk 0:00:16.4]} 26. f4 {[%clk 0:00:32.9]}
26... Qd7 {[%clk 0:00:09.1]} 27. Qxd7+ {[%clk 0:00:16.3]} 27... Kxd7 {[%clk
0:00:10]} 28. Bxb7 {[%clk 0:00:16.4]} 28... c6 {[%clk 0:00:08.5]} 29. Ba6 {[%clk
0:00:15.7]} 29... Ke6 {[%clk 0:00:06.6]} 30. Bc4+ {[%clk 0:00:15.6]} 30... Kf5
{[%clk 0:00:06.6]} 31. Kf2 {[%clk 0:00:15]} 31... Be7 {[%clk 0:00:05.3]} 32. Kf3
{[%clk 0:00:14.8]} 32... Kf6 {[%clk 0:00:04]} 33. Ng3 {[%clk 0:00:14.2]} 33...
Rxd4 {[%clk 0:00:03.8]} 34. Ne4+ {[%clk 0:00:13.3]} 34... Kf5 {[%clk 0:00:04.3]}
35. b3 {[%clk 0:00:11.5]} 35... Rd8 {[%clk 0:00:01.5]} 36. Nd6+ {[%clk 0:00:10]}
36... Bxd6 {[%clk 0:00:01.2]} 37. cxd6 {[%clk 0:00:10.9]} 37... Kf6 {[%clk
0:00:01.7]} 38. Ke4 {[%clk 0:00:09.2]} 38... g5 {[%clk 0:00:01.8]} 39. fxg5+
{[%clk 0:00:09.5]} 39... Kxg5 {[%clk 0:00:02.5]} 40. Ke5 {[%clk 0:00:10.3]}
40... Kg6 {[%clk 0:00:03.1]} 41. Ke6 {[%clk 0:00:10.5]} 41... Rf8 {[%clk
0:00:02.9]} 42. Ke7 {[%clk 0:00:10.3]} 42... Rh8 {[%clk 0:00:03.3]} 43. f8=Q
{[%clk 0:00:10.3]} 43... Rxf8 {[%clk 0:00:03.4]} 44. Kxf8 {[%clk 0:00:10.8]} 1-0

[Event "Late-Titled-Tuesday-Blitz-January-23-2024"]
[Site "Chess.com"]
[Date "2024.01.23"]
[Round "7"]
[White "Jem"]
[Black "PapaieDudu"]
[Result "0-1"]
[WhiteElo "2165"]
[BlackElo "2416"]
[TimeControl "180+1"]
[EndTime "15:15:07 PST"]
[Termination "PapaieDudu won by checkmate"]

1. e4 {[%clk 0:03:00.9]} 1... c5 {[%clk 0:03:00]} 2. Nf3 {[%clk 0:02:59.1]} 2...
d6 {[%clk 0:02:59.5]} 3. d4 {[%clk 0:02:59.2]} 3... cxd4 {[%clk 0:03:00.4]} 4.
Qxd4 {[%clk 0:02:59.7]} 4... Nc6 {[%clk 0:02:58.8]} 5. Bb5 {[%clk 0:02:59.6]}
5... Bd7 {[%clk 0:02:57.6]} 6. Bxc6 {[%clk 0:02:57.9]} 6... bxc6 {[%clk
0:02:57.5]} 7. c4 {[%clk 0:02:54.1]} 7... Nf6 {[%clk 0:02:54]} 8. Nc3 {[%clk
0:02:53.5]} 8... h6 {[%clk 0:02:50.5]} 9. h3 {[%clk 0:02:52.1]} 9... e5 {[%clk
0:02:49.6]} 10. Qd3 {[%clk 0:02:50.6]} 10... Be7 {[%clk 0:02:49.2]} 11. Be3
{[%clk 0:02:46.3]} 11... Qc7 {[%clk 0:02:49]} 12. O-O {[%clk 0:02:43.3]} 12...
O-O {[%clk 0:02:47.2]} 13. c5 {[%clk 0:02:37.7]} 13... dxc5 {[%clk 0:02:30.8]}
14. Rac1 {[%clk 0:02:36.5]} 14... Rfd8 {[%clk 0:02:28.3]} 15. Qc2 {[%clk
0:02:27.5]} 15... Be6 {[%clk 0:02:24.7]} 16. Na4 {[%clk 0:02:15.5]} 16... c4
{[%clk 0:02:15.8]} 17. Nc5 {[%clk 0:02:12.2]} 17... Bxc5 {[%clk 0:02:09]} 18.
Bxc5 {[%clk 0:02:13.1]} 18... Rab8 {[%clk 0:01:53.7]} 19. Ba3 {[%clk 0:02:10.8]}
19... Nd7 {[%clk 0:01:28.1]} 20. Nd2 {[%clk 0:02:07.4]} 20... Nb6 {[%clk
0:01:28.1]} 21. Rfd1 {[%clk 0:01:45.8]} 21... c5 {[%clk 0:01:09.5]} 22. Nf1
{[%clk 0:01:43.2]} 22... Rd4 {[%clk 0:01:07.8]} 23. Ne3 {[%clk 0:01:33.6]} 23...
Rbd8 {[%clk 0:01:04.9]} 24. f3 {[%clk 0:01:27.9]} 24... f6 {[%clk 0:01:02.4]}
25. Kh2 {[%clk 0:01:08.2]} 25... Nc8 {[%clk 0:00:58.3]} 26. b3 {[%clk
0:01:02.8]} 26... cxb3 {[%clk 0:00:55.5]} 27. axb3 {[%clk 0:01:02.9]} 27... Qb8
{[%clk 0:00:33.8]} 28. Bxc5 {[%clk 0:00:54.4]} 28... Bxb3 {[%clk 0:00:31.2]} 29.
Rxd4 {[%clk 0:00:49.4]} 29... exd4+ {[%clk 0:00:30.1]} 30. g3 {[%clk 0:00:31.9]}
30... Bxc2 {[%clk 0:00:29.1]} 31. Nxc2 {[%clk 0:00:31.8]} 31... d3 {[%clk
0:00:29.3]} 32. Nd4 {[%clk 0:00:30.7]} 32... Rxd4 {[%clk 0:00:24.6]} 33. Bxd4
{[%clk 0:00:30.5]} 33... d2 {[%clk 0:00:24.4]} 34. Rd1 {[%clk 0:00:29.2]} 34...
Qb4 {[%clk 0:00:23.1]} 35. Be3 {[%clk 0:00:28.7]} 35... Qb3 {[%clk 0:00:19.2]}
36. Rxd2 {[%clk 0:00:26.4]} 36... Qxe3 {[%clk 0:00:18.8]} 37. Rd8+ {[%clk
0:00:26.3]} 37... Kh7 {[%clk 0:00:19.4]} 38. Rxc8 {[%clk 0:00:26.6]} 38... Qf2+
{[%clk 0:00:19.8]} 39. Kh1 {[%clk 0:00:26.5]} 39... Qxf3+ {[%clk 0:00:20.5]} 40.
Kh2 {[%clk 0:00:26.9]} 40... Qf2+ {[%clk 0:00:20.9]} 41. Kh1 {[%clk 0:00:27.3]}
41... Qxg3 {[%clk 0:00:21.2]} 42. Rc2 {[%clk 0:00:18.3]} 42... Qxh3+ {[%clk
0:00:21.1]} 43. Rh2 {[%clk 0:00:17.3]} 43... Qf3+ {[%clk 0:00:21.2]} 44. Rg2
{[%clk 0:00:16.9]} 44... Qxe4 {[%clk 0:00:21.6]} 45. Kg1 {[%clk 0:00:16.7]}
45... Qxg2+ {[%clk 0:00:22.1]} 46. Kxg2 {[%clk 0:00:16.4]} 46... Kg6 {[%clk
0:00:22.9]} 47. Kg3 {[%clk 0:00:16.6]} 47... Kf5 {[%clk 0:00:23.6]} 48. Kg2
{[%clk 0:00:17.5]} 48... g5 {[%clk 0:00:24.2]} 49. Kg3 {[%clk 0:00:18.4]} 49...
h5 {[%clk 0:00:24.6]} 50. Kg2 {[%clk 0:00:19.3]} 50... a5 {[%clk 0:00:25.2]} 51.
Kg1 {[%clk 0:00:20.2]} 51... a4 {[%clk 0:00:25.9]} 52. Kg2 {[%clk 0:00:21.1]}
52... a3 {[%clk 0:00:26.7]} 53. Kg1 {[%clk 0:00:22]} 53... a2 {[%clk 0:00:27.5]}
54. Kg2 {[%clk 0:00:22.9]} 54... a1=Q {[%clk 0:00:28.2]} 55. Kh2 {[%clk
0:00:23.5]} 55... Qb2+ {[%clk 0:00:28.5]} 56. Kh3 {[%clk 0:00:23.8]} 56... g4+
{[%clk 0:00:29]} 57. Kg3 {[%clk 0:00:24]} 57... h4+ {[%clk 0:00:28.8]} 58. Kxh4
{[%clk 0:00:24.3]} 58... Qh2# {[%clk 0:00:29.6]} 0-1

[Event "Late-Titled-Tuesday-Blitz-January-23-2024"]
[Site "Chess.com"]
[Date "2024.01.23"]
[Round "7"]
[White "HackingKid98"]
[Black "Harry_Rakkel"]
[Result "0-1"]
[WhiteElo "2539"]
[BlackElo "2704"]
[TimeControl "180+1"]
[EndTime "15:15:08 PST"]
[Termination "Harry_Rakkel won on time"]

1. Nf3 {[%clk 0:03:00.9]} 1... Nf6 {[%clk 0:02:58.7]} 2. c4 {[%clk 0:03:00.6]}
2... e6 {[%clk 0:02:57.6]} 3. g3 {[%clk 0:03:00.7]} 3... d5 {[%clk 0:02:57.4]}
4. d4 {[%clk 0:03:01.3]} 4... Bb4+ {[%clk 0:02:53.7]} 5. Bd2 {[%clk 0:03:00.9]}
5... Be7 {[%clk 0:02:53.4]} 6. Bg2 {[%clk 0:03:01.1]} 6... O-O {[%clk
0:02:53.2]} 7. Bc3 {[%clk 0:03:01.1]} 7... b6 {[%clk 0:02:46.9]} 8. Nbd2 {[%clk
0:02:59.9]} 8... Bb7 {[%clk 0:02:45.8]} 9. O-O {[%clk 0:03:00.1]} 9... Nbd7
{[%clk 0:02:44.5]} 10. Ne5 {[%clk 0:03:00.2]} 10... c5 {[%clk 0:02:36.1]} 11.
Qb3 {[%clk 0:02:54.9]} 11... Rc8 {[%clk 0:02:21.5]} 12. Nxd7 {[%clk 0:02:51.3]}
12... Qxd7 {[%clk 0:02:18.6]} 13. dxc5 {[%clk 0:02:49]} 13... dxc4 {[%clk
0:02:11.4]} 14. Nxc4 {[%clk 0:02:47.6]} 14... Bxg2 {[%clk 0:02:10.7]} 15. Kxg2
{[%clk 0:02:48.5]} 15... Rxc5 {[%clk 0:02:02.7]} 16. Ne3 {[%clk 0:02:31.3]}
16... Ne4 {[%clk 0:01:57.7]} 17. Rac1 {[%clk 0:02:23.1]} 17... Rfc8 {[%clk
0:01:50.9]} 18. Rfd1 {[%clk 0:02:09.2]} 18... Qc6 {[%clk 0:01:47.4]} 19. Kg1
{[%clk 0:02:07.2]} 19... Ng5 {[%clk 0:01:14.4]} 20. f3 {[%clk 0:01:57.8]} 20...
Nxf3+ {[%clk 0:01:07.6]} 21. exf3 {[%clk 0:01:54.2]} 21... Qxf3 {[%clk
0:01:08.5]} 22. Ng2 {[%clk 0:01:24.1]} 22... Bg5 {[%clk 0:00:45.1]} 23. Rf1
{[%clk 0:01:17]} 23... Qb7 {[%clk 0:00:33]} 24. Rcd1 {[%clk 0:01:12.6]} 24... h5
{[%clk 0:00:32.6]} 25. Qa4 {[%clk 0:01:07.6]} 25... Rc4 {[%clk 0:00:26]} 26. Qd7
{[%clk 0:01:05.5]} 26... R4c7 {[%clk 0:00:25.7]} 27. Rxf7 {[%clk 0:00:20.9]}
27... Rxd7 {[%clk 0:00:20.3]} 28. Rdxd7 {[%clk 0:00:21.8]} 28... Qe4 {[%clk
0:00:15.6]} 29. Rxg7+ {[%clk 0:00:21.7]} 29... Kf8 {[%clk 0:00:15.9]} 30. Rxg5
{[%clk 0:00:15.8]} 30... Rxc3 {[%clk 0:00:10.8]} 31. bxc3 {[%clk 0:00:15.7]}
31... Qb1+ {[%clk 0:00:10.6]} 32. Kf2 {[%clk 0:00:15.1]} 32... Qc2+ {[%clk
0:00:08.9]} 33. Kf3 {[%clk 0:00:10.4]} 33... Qxc3+ {[%clk 0:00:08.7]} 34. Kf2
{[%clk 0:00:05.8]} 34... Qc2+ {[%clk 0:00:05.9]} 35. Kf3 {[%clk 0:00:06.1]}
35... Qc3+ {[%clk 0:00:05.9]} 36. Kf2 {[%clk 0:00:06.4]} 36... Qc2+ {[%clk
0:00:05.6]} 37. Kf3 {[%clk 0:00:03.8]} 37... Qc6+ {[%clk 0:00:05.6]} 0-1

[Event "Late-Titled-Tuesday-Blitz-January-23-2024"]
[Site "Chess.com"]
[Date "2024.01.23"]
[Round "7"]
[White "GM_dmitrij"]
[Black "grzechu96"]
[Result "1-0"]
[WhiteElo "2993"]
[BlackElo "2717"]
[TimeControl "180+1"]
[EndTime "15:15:09 PST"]
[Termination "GM_dmitrij won on time"]

1. d4 {[%clk 0:03:00.9]} 1... d5 {[%clk 0:02:59.6]} 2. c4 {[%clk 0:03:00.9]}
2... c6 {[%clk 0:02:57.7]} 3. cxd5 {[%clk 0:03:00.1]} 3... cxd5 {[%clk
0:02:57.7]} 4. Nc3 {[%clk 0:03:00.4]} 4... Nc6 {[%clk 0:02:56.4]} 5. e4 {[%clk
0:03:00.3]} 5... Nf6 {[%clk 0:02:43.3]} 6. e5 {[%clk 0:02:59.3]} 6... Ng8 {[%clk
0:02:38.9]} 7. Be3 {[%clk 0:02:55.4]} 7... e6 {[%clk 0:02:34]} 8. Bd3 {[%clk
0:02:55.2]} 8... Nge7 {[%clk 0:02:33.2]} 9. Nge2 {[%clk 0:02:50.7]} 9... Bd7
{[%clk 0:02:29.4]} 10. O-O {[%clk 0:02:50]} 10... Ng6 {[%clk 0:02:29.5]} 11. g3
{[%clk 0:02:45.7]} 11... Be7 {[%clk 0:02:27.2]} 12. h4 {[%clk 0:02:45.8]} 12...
f5 {[%clk 0:02:14.5]} 13. exf6 {[%clk 0:02:35.9]} 13... Bxf6 {[%clk 0:02:14.3]}
14. Bxg6+ {[%clk 0:02:29.3]} 14... hxg6 {[%clk 0:02:15.2]} 15. Qd3 {[%clk
0:02:29.6]} 15... Kf7 {[%clk 0:02:07.5]} 16. Nf4 {[%clk 0:02:18.3]} 16... Ne7
{[%clk 0:02:06.8]} 17. Rfe1 {[%clk 0:02:07.9]} 17... Nf5 {[%clk 0:02:05.3]} 18.
Ng2 {[%clk 0:01:54.3]} 18... Rc8 {[%clk 0:01:51.5]} 19. Ne2 {[%clk 0:01:49.5]}
19... Qb6 {[%clk 0:01:40.7]} 20. Qd2 {[%clk 0:01:49.2]} 20... Bb5 {[%clk
0:01:28.9]} 21. Rad1 {[%clk 0:01:36.2]} 21... Bxe2 {[%clk 0:01:24.5]} 22. Qxe2
{[%clk 0:01:37.1]} 22... Rc6 {[%clk 0:01:23.5]} 23. Nf4 {[%clk 0:01:36.6]} 23...
Rhc8 {[%clk 0:00:20.2]} 24. Qg4 {[%clk 0:01:35.9]} 24... Ne7 {[%clk 0:00:20.6]}
25. b3 {[%clk 0:01:24.3]} 25... Qa6 {[%clk 0:00:19.2]} 26. Re2 {[%clk
0:00:57.6]} 26... Rc2 {[%clk 0:00:14.8]} 27. Bd2 {[%clk 0:00:57.6]} 27... R8c6
{[%clk 0:00:10.5]} 28. Rde1 {[%clk 0:00:57.7]} 28... Qxa2 {[%clk 0:00:06.7]} 29.
Nxe6 {[%clk 0:00:20.6]} 29... Rxd2 {[%clk 0:00:06.6]} 30. Nd8+ {[%clk
0:00:19.4]} 30... Kf8 {[%clk 0:00:07.2]} 31. Nxc6 {[%clk 0:00:19.2]} 31... bxc6
{[%clk 0:00:07.8]} 32. Rxe7 {[%clk 0:00:16.9]} 32... Bxe7 {[%clk 0:00:07.2]} 33.
Qc8+ {[%clk 0:00:17.1]} 33... Kf7 {[%clk 0:00:06]} 34. Qe6+ {[%clk 0:00:17.4]}
34... Kf8 {[%clk 0:00:06.7]} 35. Qxe7+ {[%clk 0:00:17.8]} 35... Kg8 {[%clk
0:00:07.5]} 36. Qe8+ {[%clk 0:00:15.9]} 36... Kh7 {[%clk 0:00:08]} 37. h5 {[%clk
0:00:16.8]} 37... Qc2 {[%clk 0:00:02.6]} 38. hxg6+ {[%clk 0:00:09.8]} 38... Qxg6
{[%clk 0:00:03.5]} 39. Qe3 {[%clk 0:00:06.6]} 39... Qd3 {[%clk 0:00:02.3]} 40.
Qe5 {[%clk 0:00:05.8]} 1-0

[Event "Late-Titled-Tuesday-Blitz-January-23-2024"]
[Site "Chess.com"]
[Date "2024.01.23"]
[Round "7"]
[White "Mikhal867"]
[Black "ritanovikova"]
[Result "1/2-1/2"]
[WhiteElo "2415"]
[BlackElo "2193"]
[TimeControl "180+1"]
[EndTime "15:15:11 PST"]
[Termination "Game drawn by repetition"]

1. d4 {[%clk 0:02:55.4]} 1... g6 {[%clk 0:02:54.6]} 2. e4 {[%clk 0:02:54.6]}
2... Bg7 {[%clk 0:02:55]} 3. Nc3 {[%clk 0:02:53.5]} 3... d6 {[%clk 0:02:54.8]}
4. f4 {[%clk 0:02:53.6]} 4... Nc6 {[%clk 0:02:53.6]} 5. Nf3 {[%clk 0:02:50.4]}
5... Bg4 {[%clk 0:02:52.9]} 6. Be3 {[%clk 0:02:48]} 6... e5 {[%clk 0:02:48.9]}
7. fxe5 {[%clk 0:02:42.9]} 7... dxe5 {[%clk 0:02:48.5]} 8. d5 {[%clk 0:02:43.2]}
8... Nce7 {[%clk 0:02:45.7]} 9. h3 {[%clk 0:02:38.1]} 9... Bxf3 {[%clk
0:02:44.5]} 10. Qxf3 {[%clk 0:02:37.6]} 10... f5 {[%clk 0:02:44.1]} 11. O-O-O
{[%clk 0:02:25.3]} 11... f4 {[%clk 0:02:42.7]} 12. Bb5+ {[%clk 0:02:21.1]} 12...
Kf8 {[%clk 0:02:37.6]} 13. g3 {[%clk 0:02:20]} 13... g5 {[%clk 0:02:37]} 14. h4
{[%clk 0:02:20.2]} 14... h6 {[%clk 0:02:37.1]} 15. hxg5 {[%clk 0:02:20]} 15...
hxg5 {[%clk 0:02:38]} 16. Rxh8 {[%clk 0:02:18.8]} 16... Bxh8 {[%clk 0:02:38.9]}
17. gxf4 {[%clk 0:02:16.5]} 17... exf4 {[%clk 0:02:35.8]} 18. Bxf4 {[%clk
0:02:15.6]} 18... gxf4 {[%clk 0:02:30.9]} 19. Qxf4+ {[%clk 0:02:15.7]} 19... Kg7
{[%clk 0:02:30.3]} 20. Rg1+ {[%clk 0:01:56.2]} 20... Ng6 {[%clk 0:02:27.5]} 21.
Qg3 {[%clk 0:01:55.7]} 21... Ne7 {[%clk 0:02:21.6]} 22. e5 {[%clk 0:01:54.5]}
22... Kf8 {[%clk 0:02:07.6]} 23. Rf1+ {[%clk 0:01:44.5]} 23... Kg8 {[%clk
0:02:01]} 24. Bd3 {[%clk 0:01:43.7]} 24... Bxe5 {[%clk 0:01:53.8]} 25. Qg5
{[%clk 0:01:21.4]} 25... Qd6 {[%clk 0:01:37.2]} 26. Kb1 {[%clk 0:01:06.3]} 26...
Bxc3 {[%clk 0:01:19.4]} 27. bxc3 {[%clk 0:01:01.9]} 27... Qe5 {[%clk 0:01:10.6]}
28. Qg4 {[%clk 0:00:50.2]} 28... Kg7 {[%clk 0:01:06.8]} 29. Rg1 {[%clk 0:00:47]}
29... Qf6 {[%clk 0:00:56.6]} 30. c4 {[%clk 0:00:46.1]} 30... Rf8 {[%clk
0:00:53.4]} 31. Qd7 {[%clk 0:00:45.2]} 31... Rf7 {[%clk 0:00:50.5]} 32. Qe8
{[%clk 0:00:29.6]} 32... Nf5 {[%clk 0:00:48]} 33. c5 {[%clk 0:00:22.6]} 33...
Re7 {[%clk 0:00:34.8]} 34. Qc8 {[%clk 0:00:20.7]} 34... Rf7 {[%clk 0:00:33.1]}
35. Rf1 {[%clk 0:00:17.4]} 35... Nge7 {[%clk 0:00:28.1]} 36. Qxb7 {[%clk
0:00:13]} 36... Qd4 {[%clk 0:00:25.6]} 37. d6 {[%clk 0:00:10.5]} 37... cxd6
{[%clk 0:00:23.7]} 38. cxd6 {[%clk 0:00:10.8]} 38... Qxd6 {[%clk 0:00:20.5]} 39.
Qg2+ {[%clk 0:00:09.5]} 39... Qg6 {[%clk 0:00:19.5]} 40. Qh2 {[%clk 0:00:08]}
40... Qb6+ {[%clk 0:00:18.9]} 41. Kc1 {[%clk 0:00:07.4]} 41... Qe3+ {[%clk
0:00:18.7]} 42. Kb1 {[%clk 0:00:07.7]} 42... Qb6+ {[%clk 0:00:17.6]} 43. Kc1
{[%clk 0:00:08]} 43... Qe3+ {[%clk 0:00:17.7]} 44. Kb1 {[%clk 0:00:08.4]} 44...
Qb6+ {[%clk 0:00:17.7]} 1/2-1/2

[Event "Late-Titled-Tuesday-Blitz-January-23-2024"]
[Site "Chess.com"]
[Date "2024.01.23"]
[Round "7"]
[White "egnfanclub"]
[Black "JoakimVonAnd"]
[Result "0-1"]
[WhiteElo "2380"]
[BlackElo "2629"]
[TimeControl "180+1"]
[EndTime "15:15:12 PST"]
[Termination "JoakimVonAnd won on time"]

1. e4 {[%clk 0:03:00.9]} 1... c6 {[%clk 0:02:59.7]} 2. d4 {[%clk 0:03:00.4]}
2... d5 {[%clk 0:03:00.2]} 3. exd5 {[%clk 0:03:01]} 3... cxd5 {[%clk 0:03:00.3]}
4. c4 {[%clk 0:03:01.9]} 4... Nf6 {[%clk 0:03:00.3]} 5. Nc3 {[%clk 0:03:02.5]}
5... g6 {[%clk 0:03:00.8]} 6. cxd5 {[%clk 0:02:59.6]} 6... Bg7 {[%clk
0:03:00.8]} 7. Qb3 {[%clk 0:02:58.4]} 7... O-O {[%clk 0:03:01]} 8. Be2 {[%clk
0:02:58.9]} 8... Na6 {[%clk 0:03:01.3]} 9. Bf3 {[%clk 0:02:59.3]} 9... b5 {[%clk
0:03:01.7]} 10. d6 {[%clk 0:02:38]} 10... Rb8 {[%clk 0:02:59.6]} 11. Nge2 {[%clk
0:02:27.7]} 11... b4 {[%clk 0:02:47]} 12. Nd5 {[%clk 0:02:15.5]} 12... Nxd5
{[%clk 0:02:43.5]} 13. Bxd5 {[%clk 0:02:08.1]} 13... e6 {[%clk 0:02:31.8]} 14.
Bf3 {[%clk 0:01:55.5]} 14... Bb7 {[%clk 0:02:05.8]} 15. Bf4 {[%clk 0:01:54.9]}
15... Bxf3 {[%clk 0:02:02.7]} 16. Qxf3 {[%clk 0:01:55.8]} 16... Rb5 {[%clk
0:02:03.2]} 17. O-O {[%clk 0:01:27.8]} 17... Rd5 {[%clk 0:01:59.8]} 18. Rfd1
{[%clk 0:01:17.4]} 18... h5 {[%clk 0:01:59.5]} 19. h3 {[%clk 0:01:13.6]} 19...
Nb8 {[%clk 0:01:47.9]} 20. Rac1 {[%clk 0:01:12.5]} 20... Qb6 {[%clk 0:01:40.8]}
21. a3 {[%clk 0:00:53.5]} 21... Nc6 {[%clk 0:01:38.8]} 22. Qe3 {[%clk
0:00:37.3]} 22... a5 {[%clk 0:01:18.4]} 23. Bg3 {[%clk 0:00:16.9]} 23... Rd8
{[%clk 0:01:18.4]} 24. Rd3 {[%clk 0:00:07.6]} 24... Bf6 {[%clk 0:01:12.5]} 25.
axb4 {[%clk 0:00:07.3]} 25... axb4 {[%clk 0:01:12.4]} 26. Rcd1 {[%clk
0:00:06.8]} 26... Kg7 {[%clk 0:01:12.8]} 27. Nf4 {[%clk 0:00:06.9]} 27... R5xd6
{[%clk 0:01:12.4]} 28. Nxh5+ {[%clk 0:00:05.3]} 28... gxh5 {[%clk 0:01:13.3]}
29. Bxd6 {[%clk 0:00:05.2]} 29... h4 {[%clk 0:00:50.8]} 30. Be5 {[%clk
0:00:04.9]} 30... Bxe5 {[%clk 0:00:43.1]} 31. Qg5+ {[%clk 0:00:04.5]} 31... Kf8
{[%clk 0:00:31]} 32. dxe5 {[%clk 0:00:05]} 32... Rxd3 {[%clk 0:00:12.3]} 33.
Rxd3 {[%clk 0:00:05.9]} 33... Qc5 {[%clk 0:00:11]} 34. Qh6+ {[%clk 0:00:04.9]}
34... Ke7 {[%clk 0:00:11]} 35. Qf6+ {[%clk 0:00:04.1]} 35... Ke8 {[%clk
0:00:11]} 36. Rf3 {[%clk 0:00:03.3]} 36... Nxe5 {[%clk 0:00:07.8]} 37. Re3
{[%clk 0:00:02.4]} 37... Nc6 {[%clk 0:00:06.6]} 38. Qxh4 {[%clk 0:00:02.4]}
38... Qc1+ {[%clk 0:00:06.6]} 39. Kh2 {[%clk 0:00:02.2]} 39... Qxb2 {[%clk
0:00:07.1]} 40. Qh6 {[%clk 0:00:01.9]} 40... Qd4 {[%clk 0:00:06.2]} 41. Rg3
{[%clk 0:00:02.4]} 41... Qd6 {[%clk 0:00:06.2]} 0-1

[Event "Late-Titled-Tuesday-Blitz-January-23-2024"]
[Site "Chess.com"]
[Date "2024.01.23"]
[Round "7"]
[White "ClayK1ng"]
[Black "mbchess97"]
[Result "0-1"]
[WhiteElo "2244"]
[BlackElo "2333"]
[TimeControl "180+1"]
[EndTime "15:15:13 PST"]
[Termination "mbchess97 won by resignation"]

1. e4 {[%clk 0:03:00.9]} 1... c5 {[%clk 0:02:59.7]} 2. c3 {[%clk 0:02:56.3]}
2... Nf6 {[%clk 0:02:59.1]} 3. e5 {[%clk 0:02:52.9]} 3... Nd5 {[%clk 0:02:59.4]}
4. d3 {[%clk 0:02:53.8]} 4... e6 {[%clk 0:02:53.5]} 5. Nf3 {[%clk 0:02:54.1]}
5... d6 {[%clk 0:02:50]} 6. g3 {[%clk 0:02:49.4]} 6... Nc6 {[%clk 0:02:49.5]} 7.
Qe2 {[%clk 0:02:46.8]} 7... Qc7 {[%clk 0:02:47.2]} 8. exd6 {[%clk 0:02:45.3]}
8... Bxd6 {[%clk 0:02:47.6]} 9. Bg2 {[%clk 0:02:45.5]} 9... O-O {[%clk
0:02:46.2]} 10. Nbd2 {[%clk 0:02:45.3]} 10... b6 {[%clk 0:02:35.3]} 11. O-O
{[%clk 0:02:43.7]} 11... Ba6 {[%clk 0:02:31.5]} 12. Nc4 {[%clk 0:02:43.5]} 12...
Be7 {[%clk 0:02:29.3]} 13. h4 {[%clk 0:02:37.4]} 13... Rad8 {[%clk 0:02:26.3]}
14. Bg5 {[%clk 0:02:36.8]} 14... h6 {[%clk 0:02:20.4]} 15. Bxe7 {[%clk
0:02:36.2]} 15... Qxe7 {[%clk 0:02:16.5]} 16. Rfd1 {[%clk 0:02:36.5]} 16... Qf6
{[%clk 0:02:14.7]} 17. Nce5 {[%clk 0:02:33.3]} 17... Nce7 {[%clk 0:02:04.1]} 18.
a4 {[%clk 0:02:24.5]} 18... Nc7 {[%clk 0:01:47.7]} 19. a5 {[%clk 0:02:21.8]}
19... b5 {[%clk 0:01:41.3]} 20. Rd2 {[%clk 0:02:00.6]} 20... b4 {[%clk
0:01:38.3]} 21. Qe3 {[%clk 0:01:53.3]} 21... Rd5 {[%clk 0:01:16]} 22. c4 {[%clk
0:01:49.9]} 22... Nf5 {[%clk 0:01:15.4]} 23. Qe4 {[%clk 0:01:36.4]} 23... Rd6
{[%clk 0:01:13.8]} 24. b3 {[%clk 0:01:24.9]} 24... Rfd8 {[%clk 0:01:11.2]} 25.
Re1 {[%clk 0:01:14.2]} 25... Ne8 {[%clk 0:01:04]} 26. Ng4 {[%clk 0:01:02.4]}
26... Qc3 {[%clk 0:00:56.8]} 27. Ne3 {[%clk 0:01:03.3]} 27... Nd4 {[%clk
0:00:49.5]} 28. Rdd1 {[%clk 0:00:25.7]} 28... Nf6 {[%clk 0:00:40.6]} 29. Qf4
{[%clk 0:00:20.7]} 29... Nxb3 {[%clk 0:00:36.1]} 30. g4 {[%clk 0:00:17.4]} 30...
Rxd3 {[%clk 0:00:20.8]} 31. g5 {[%clk 0:00:16.7]} 31... hxg5 {[%clk 0:00:20.3]}
32. hxg5 {[%clk 0:00:16.8]} 32... Ne8 {[%clk 0:00:17.1]} 33. Rxd3 {[%clk
0:00:08.9]} 33... Rxd3 {[%clk 0:00:15.8]} 34. Re2 {[%clk 0:00:04.7]} 34... Nd4
{[%clk 0:00:13.6]} 35. Nxd4 {[%clk 0:00:04.9]} 35... Qxd4 {[%clk 0:00:13.6]} 36.
Qb8 {[%clk 0:00:05.8]} 36... Kf8 {[%clk 0:00:13.5]} 37. Qxa7 {[%clk 0:00:06.1]}
37... Bxc4 {[%clk 0:00:09.3]} 38. Nxc4 {[%clk 0:00:05.2]} 38... Qxc4 {[%clk
0:00:09.3]} 39. a6 {[%clk 0:00:05.2]} 39... Rd1+ {[%clk 0:00:09.3]} 40. Kh2
{[%clk 0:00:04.9]} 40... Qxe2 {[%clk 0:00:09.1]} 41. Bh3 {[%clk 0:00:05.8]}
41... Qxf2+ {[%clk 0:00:08.7]} 42. Bg2 {[%clk 0:00:05.5]} 42... Qh4+ {[%clk
0:00:08.9]} 0-1